Cogmind - Beta 15 @@@ ROGUE MODE // 2025.06.09 @ 22:38:02 Player: morimori Result: Destroyed by G-73 Enforcer with Heavy Laser Performance ------------- Evolutions (6) 3000 Regions Visited (21) 4200 Robots Destroyed (230) 1150 Value Destroyed (8269) 8269 Prototype IDs (34) 680 Alien Tech Used (1) 200 Bonus (5892) 5892 TOTAL SCORE: 23391 Bonus ------- High Alert Combat Kills 385 Follower Combat Kills 359 Met Data Miner 300 Met Warlord at Base 500 MAIN.C Attacked Warlord 500 Warlord Defense Kills 4870 Friendly Fire -1022 Cogmind --------- Core Integrity 0/1150 Matter 28/300 Energy 20/100 System Corruption 5% Temperature Cool (18) Movement Core (50) Location -4/Factory Parts ------- > --- POWER (2) -------- (None) > --- PROPULSION (6) --- (None) > --- UTILITY (10) ----- Advanced Signal Interpreter Makeshift Hacking Suite Makeshift Hacking Suite Advanced Hacking Suite Authchip [Device] Authchip [Processor] > --- WEAPON (2) ------- Impact Mace > --- INVENTORY (5) ---- Vortex Chain Reactor Quantum Capacitor Authchip [Processor] Peak State ------------ > --- POWER ------------ Micro Fission Core Particle Reactor > --- PROPULSION ------- Improved Linear Gravjet Cooled Antigrav System Combat Linear Gravjet Combat Linear Gravjet Combat Linear Gravjet Combat Linear Gravjet > --- UTILITY ---------- High-capacity Storage Unit Advanced Sensor Array Long-range Sensor Array Advanced Signal Interpreter Advanced Transmission Jammer Hacking Suite Makeshift Hacking Suite Makeshift Hacking Suite Makeshift Hacking Suite Advanced System Shield > --- WEAPON ----------- Phase Cannon Impact Mace > --- INVENTORY -------- Light Angular Momentum Engine Vortex Chain Reactor Huge Storage Unit Advanced Gravity Neutralizer Experimental Optical Array Advanced Sensor Array Centrium Light Armor Plating Authchip [Device] Authchip [Device] Authchip [Device] Authchip [Processor] Authchip [Processor] Authchip [Processor] Authchip [Processor] Authchip [Processor] Authchip [Processor] Authchip [Armor] Smartbomb Launcher [Rating: 132] Favorites ----------- Power Enhanced Nuclear Core Engine Ion Engine Power Core Enhanced Nuclear Core Reactor Particle Reactor Propulsion Gravmag System Treads Advanced Treads Wheel Wheel Hover Unit Gravmag System Utility Makeshift Hacking Suite Device Experimental Sensor Array Storage Large Storage Unit Processor Improved Signal Interpreter Hackware Makeshift Hacking Suite Protection Reactive Plating Weapon Impact Mace Energy Gun Heavy EM Pulse Gun Energy Cannon Phase Cannon Ballistic Gun Light Assault Rifle Ballistic Cannon Heavy Autocannon Launcher Grenade Launcher Special Weapon RU-N14's Throwing Claymores Impact Weapon Impact Mace Build | -11 -10 -10 -9 -8 -7 -7 -7 -7 -7 -7 -6 -6 -6 -6 -6 -5 -5 -5 -5 -4 -4 ------- Run | Yrd Mat Min Mat Mat Fac Was Fac Low Low Zio Pro Fac Low Low Dat Pro Fac Upp War Pro Fac Slots Evolved 12 | . . . 2 2 2 . . . . . . 2 . . . . 2 . . . 2 Power 1 | . . . . . . . . . . . . . . . . . . . . . 1 Propulsion 4 | . . . . 2 1 . . . . . . . . . . . 1 . . . . Utility 7 | . . . 2 . 1 . . . . . . 2 . . . . 1 . . . 1 Weapon . | . . . . . . . . . . . . . . . . . . . . . . Parts Attached 144 | 6 20 6 13 14 17 . 1 5 1 2 1 8 . . . 1 5 1 18 . 25 Power 17 | 1 3 1 1 3 2 . 1 . . . . . . . . . . . . . 5 Engine 11 | 1 3 . 1 3 1 . 1 . . . . . . . . . . . . . 1 Core 4 | . . 1 . . 1 . . . . . . . . . . . . . . . 2 Reactor 2 | . . . . . . . . . . . . . . . . . . . . . 2 Propulsion 37 | 2 4 . 3 3 9 . . 1 . . 1 2 . . . . 2 . 8 . 2 Treads 1 | . . . . 1 . . . . . . . . . . . . . . . . . Leg . | . . . . . . . . . . . . . . . . . . . . . . Wheel 11 | 2 4 . 3 2 . . . . . . . . . . . . . . . . . Hover 25 | . . . . . 9 . . 1 . . 1 2 . . . . 2 . 8 . 2 Flight . | . . . . . . . . . . . . . . . . . . . . . . Utility 49 | 1 4 2 8 2 1 . . 2 . . . 4 . . . . 3 . 6 . 16 Device 15 | . 1 . 4 1 . . . . . . . 1 . . . . . . 2 . 6 Storage 6 | 1 3 . . . . . . 1 . . . . . . . . . . . . 1 Processor 2 | . . . 1 . . . . . . . . 1 . . . . . . . . . Hackware 19 | . . . . . 1 . . 1 . . . 2 . . . . 3 . 3 . 9 Protection 7 | . . 2 3 1 . . . . . . . . . . . . . . 1 . . Artifact . | . . . . . . . . . . . . . . . . . . . . . . Weapon 41 | 2 9 3 1 6 5 . . 2 1 2 . 2 . . . 1 . 1 4 . 2 Energy Gun 17 | . 7 . . 4 2 . . . 1 . . . . . . . . . 3 . . Energy Cannon 5 | . . . 1 . . . . 1 . . . 1 . . . 1 . . . . 1 Ballistic Gun 3 | 2 . . . 1 . . . . . . . . . . . . . . . . . Ballistic Cannon 1 | . . . . . . . . . . . . . . . . . . . 1 . . Launcher 9 | . 2 2 . 1 1 . . 1 . . . . . . . . . 1 . . 1 Special Weapon 3 | . . . . . . . . . . 2 . 1 . . . . . . . . . Impact Weapon 3 | . . 1 . . 2 . . . . . . . . . . . . . . . . Slashing Weapon . | . . . . . . . . . . . . . . . . . . . . . . Piercing Weapon . | . . . . . . . . . . . . . . . . . . . . . . Special Melee Weapon . | . . . . . . . . . . . . . . . . . . . . . . Unidentified Prototypes 16 | . . . 2 1 2 . 1 . . 1 . 1 . 1 . . . . 7 . . Parts Lost 44 | . 2 . 1 4 1 . . . . . 2 . . . . . 4 . 3 . 27 Power 2 | . . . . . . . . . . . . . . . . . . . . . 2 Propulsion 20 | . 2 . 1 2 . . . . . . 2 . . . . . 4 . . . 9 Utility 14 | . . . . . . . . . . . . . . . . . . . 3 . 11 Weapon 8 | . . . . 2 1 . . . . . . . . . . . . . . . 5 Highest Loss Streak 11 | . 1 . 1 1 1 . . . . . 2 . . . . . 2 . 1 . 11 To Critical Strikes . | . . . . . . . . . . . . . . . . . . . . . . Average Backups 18 | 2 15 24 24 24 14 15 15 14 14 14 15 14 15 15 17 16 17 18 18 19 16 Power 1 | . 2 2 2 1 2 2 1 1 1 1 1 1 1 1 1 1 1 1 1 2 1 Propulsion 2 | . 3 6 6 5 1 1 1 1 1 1 . . 1 1 1 1 . . . 1 . Utility 9 | . 2 9 8 9 5 7 7 9 9 10 10 8 10 10 12 12 12 14 13 12 12 Weapon 4 | . 6 6 7 8 6 5 5 3 3 2 3 4 3 3 3 2 4 3 3 4 2 Tool/Special . | . . . . . . . . . . . . . . . . . . . . . . Unused Backups 54 | . 7 3 7 12 6 . 1 . . 2 . 2 . . . . 1 . 1 . 12 Power 7 | . . . 1 3 1 . 1 . . . . . . . . . . . . . 1 Propulsion 12 | . 2 . 4 5 1 . . . . . . . . . . . . . . . . Utility 22 | . 2 3 2 1 1 . . . . 1 . . . . . . 1 . 1 . 10 Weapon 13 | . 3 . . 3 3 . . . . 1 . 2 . . . . . . . . 1 Tool/Special . | . . . . . . . . . . . . . . . . . . . . . . Average Slot Usage (%) 95 | . 95 100 99 96 99 100 100 100 100 99 84 98 100 100 100 100 89 77 89 94 83 Engine 3 | . 13 14 7 9 . . . . . . . . . . . . . . . . 3 Core 3 | . . . 3 . 6 7 6 7 7 7 7 6 6 6 6 6 5 5 5 5 2 Wheel 8 | . 24 28 22 24 . . . . . . . . . . . . . . . . . Hover 21 | . . . . . 37 38 38 38 38 38 30 32 33 31 31 31 29 22 30 33 24 Device 8 | . 13 1 11 12 14 15 15 12 7 7 7 6 6 9 12 12 4 5 4 . 6 Storage 7 | . 14 14 11 9 7 7 7 7 7 7 7 6 6 6 6 6 5 5 5 5 5 Processor 5 | . . . 10 9 7 7 7 7 7 7 7 6 6 6 6 6 5 5 5 5 5 Hackware 14 | . . . . . 6 7 7 9 15 15 15 25 26 25 25 25 32 33 30 33 28 Protection 2 | . . 12 9 5 . . . . . . . . . . . . . . . 5 2 Energy Gun 8 | . 23 4 21 17 12 7 7 7 7 6 7 . . . . . . . . . . Energy Cannon 1 | . . . . . . . . 3 7 2 . 3 6 6 6 5 1 . . . 1 Launcher 1 | . . 20 . . . . . . . . . . . . . . . . 2 5 . Impact Weapon 2 | . . 3 . . 2 7 6 3 . . . 5 5 6 5 5 2 . . . 3 Peak Build Rating 132 | 6 14 17 31 39 56 56 56 56 53 59 59 73 73 81 82 82 90 83 124 124 132 Average Rating 56 | 5 11 13 25 35 49 56 55 53 53 56 50 70 71 76 81 80 78 72 97 124 108 On Entrance 57 | . 6 14 17 30 34 56 56 55 53 53 58 50 73 71 81 82 80 72 72 124 124 Naked Turns . | . . . . . . . . . . . . . . . . . . . . . . Heaviest Build 120 | 12 92 95 114 104 38 37 38 120 39 41 41 45 40 61 66 66 61 58 61 60 77 Greatest Support 87 | 26 32 26 26 36 43 43 43 43 41 41 41 45 45 45 45 45 58 41 82 82 87 Greatest Overweight (x) 5 | 3 3 3 4 5 . . . 2 1 . 1 . . 1 1 1 1 1 1 1 1 Average Overweight (x) . | . 1 3 3 2 . . . . . . . . . . 1 1 . 1 . . . Largest Inventory Capacity 25 | 8 25 25 25 25 25 15 15 25 15 15 15 15 15 20 20 20 20 20 20 20 20 Average Capacity 19 | 7 17 25 25 25 15 15 15 15 15 15 15 15 15 16 20 20 20 20 20 20 19 Most Carried 25 | 5 25 25 25 25 25 15 15 15 15 15 15 15 15 17 17 17 20 20 20 20 20 Average Carried 18 | 2 15 24 24 24 14 15 14 14 14 14 14 14 15 15 17 16 18 19 19 20 19 Final Capacity 25 | 8 25 25 25 25 15 15 15 15 15 15 15 15 15 20 20 20 20 20 20 20 5 Final Carried 25 | 5 25 25 25 25 15 15 15 14 15 15 15 15 15 17 17 17 20 20 20 20 5 Class Distribution -------------------- 42% | Mutant 38% | Hacker-Mutant 14% | Wizard-Mutant 4% | Scavenger-Mutant Dominant Class ---------------- Mutant | -10/Materials Mutant | -10/Mines Mutant | -9/Materials Mutant | -8/Materials Mutant | -7/Factory Mutant | -7/Waste Mutant | -7/Factory Mutant | -7/Lower Caves Hacker-Mutant | -7/Lower Caves Hacker-Mutant | -7/Zion Hacker-Mutant | -6/Proximity Caves Hacker-Mutant | -6/Factory Hacker-Mutant | -6/Lower Caves Hacker-Mutant | -6/Lower Caves Hacker-Mutant | -6/Data Miner Hacker-Mutant | -5/Proximity Caves Wizard-Mutant | -5/Factory Wizard-Mutant | -5/Upper Caves Wizard-Mutant | -5/Warlord Wizard-Mutant | -4/Proximity Caves Hacker-Mutant | -4/Factory Resources | -11 -10 -10 -9 -8 -7 -7 -7 -7 -7 -7 -6 -6 -6 -6 -6 -5 -5 -5 -5 -4 -4 ----------- Run | Yrd Mat Min Mat Mat Fac Was Fac Low Low Zio Pro Fac Low Low Dat Pro Fac Upp War Pro Fac Matter Collected 4805 | 276 438 187 354 274 158 . . 611 34 69 5 89 71 40 . 150 79 28 1259 128 555 Remotely . | . . . . . . . . . . . . . . . . . . . . . . Salvage Created 7029 | 137 929 116 963 1285 203 . . 544 . . 111 44 110 111 . 308 19 28 1104 121 896 Parts 343 | 7 54 20 54 65 8 . . 25 . . 8 . 2 3 . 11 1 1 37 11 36 Haulers Intercepted 5 | . 2 . 3 . . . . . . . . . . . . . . . . . . Recyclers Shooed 4 | . 3 . . 1 . . . . . . . . . . . . . . . . . Parts Field Recycled . | . . . . . . . . . . . . . . . . . . . . . . Retrieved Matter . | . . . . . . . . . . . . . . . . . . . . . . Parts Self-Destructed 43 | . . . . . . . . 9 . . 9 . 8 . . 8 . 1 . 8 . Prevented 1 | . . . . . . . . . 1 . . . . . . . . . . . . Kills | -11 -10 -10 -9 -8 -7 -7 -7 -7 -7 -7 -6 -6 -6 -6 -6 -5 -5 -5 -5 -4 -4 ------- Run | Yrd Mat Min Mat Mat Fac Was Fac Low Low Zio Pro Fac Low Low Dat Pro Fac Upp War Pro Fac Combat Hostiles Destroyed 172 | . 17 9 16 17 3 . . 14 . . 5 . 1 . . 9 2 4 43 7 25 Melee 3 | . . . . . . . . . . . . . . . . . . . . . 3 Guns 36 | . 11 1 13 10 . . . . . . . . . . . . . . . . 1 Cannons 5 | . . . . . . . . . . . . . 1 . . 2 . . . . 2 AOE 125 | . 6 8 3 4 3 . . 14 . . 5 . . . . 7 2 4 43 7 19 Classes Destroyed 19 | 2 8 . 1 1 . . . 1 . . 1 . . 1 . . 1 . 3 . . Worker 11 | . 1 1 1 3 2 . . . . . . 1 . . . . . . . . 2 Builder 3 | . 1 . . 1 . . . . . . . . . . . . . . . . 1 Tunneler 2 | 2 . . . . . . . . . . . . . . . . . . . . . Hauler 5 | . 2 . 3 . . . . . . . . . . . . . . . . . . Recycler 12 | 1 3 . . 4 2 . . . . . . . . . . . . . . . 2 Mechanic 2 | . . . . . . . . . . . . . . . . . . . 2 . . Operator 7 | . 2 . 2 1 . . . 2 . . . . . . . . . . . . . Watcher 13 | . 3 . 2 4 1 . . . . . . 1 . . . . . . . . 2 Swarmer 61 | . 6 6 3 4 3 . . 14 . . 3 . . . . 5 . 4 3 5 5 Grunt 65 | . 7 3 11 9 . . . . . . 1 . 1 . . 1 . . 25 . 7 Brawler 5 | . . . . . . . . . . . 1 . . . . 2 . . 2 . . Duelist 3 | . . . . . . . . . . . . . . . . . . . 3 . . Protector 2 | . . . . . . . . . . . . . . . . . . . 2 . . Researcher 1 | . . . . . . . . . . . . . . 1 . . . . . . . Sentry 8 | . . . 2 3 . . . . . . . . . . . 1 . . . . 2 Hunter 10 | . . . . 1 . . . . . . . . . . . . . . 3 2 4 Programmer 14 | . . . . . . . . . . . . . . . . . 2 . 5 . 7 Federalist 5 | . 5 . . . . . . . . . . . . . . . . . . . . Packrat 3 | . . . . . . . . 3 . . . . . . . . . . . . . Samaritan 1 | . . . . . . . . 1 . . . . . . . . . . . . . Savage 1 | . . . . . . . . . . . . . . 1 . . . . . . . Best Kill Streak 18 | 3 6 5 6 9 4 . . 4 . . 5 1 1 . . 9 2 4 18 7 8 Combat Bots Only 18 | . 4 5 6 4 3 . . 4 . . 5 . 1 . . 9 2 4 18 7 6 Max Kills in Single Turn 7 | 1 4 3 3 3 4 . . 4 . . 3 1 1 1 . 3 1 2 7 5 3 Gunslinging . | . . . . . . . . . . . . . . . . . . . . . . Exploded 6 | . 3 3 2 2 3 . . 4 . . 3 . . . . 3 1 2 6 5 3 Melee 1 | . . . . . . . . . . . . . . . . . . . . . 1 Uniques/NPCs Destroyed . | . . . . . . . . . . . . . . . . . . . . . . Combat | -11 -10 -10 -9 -8 -7 -7 -7 -7 -7 -7 -6 -6 -6 -6 -6 -5 -5 -5 -5 -4 -4 -------- Run | Yrd Mat Min Mat Mat Fac Was Fac Low Low Zio Pro Fac Low Low Dat Pro Fac Upp War Pro Fac Hostile Shots Fired 662 | . 80 12 42 68 14 . . 17 . . 17 17 4 . . 3 20 . 17 4 347 Missed 241 | . 16 5 10 24 8 . . 7 . . 6 12 2 . . 1 9 . 8 2 131 Hits 421 | . 64 7 32 44 6 . . 10 . . 11 5 2 . . 2 11 . 9 2 216 Projectile 421 | . 64 7 32 44 6 . . 10 . . 11 5 2 . . 2 11 . 9 2 216 Critical Strikes 22 | . 2 . 2 4 . . . . . . 1 1 . . . . 1 . 1 . 10 Part Disruptions 1 | . . . . . . . . . 1 . . . . . . . . . . . . Damage Taken 7606 | . 688 147 405 646 94 . . 218 40 . 194 85 36 . . 44 309 . 167 . 4533 Core 1721 | . 225 8 67 36 5 . . 27 14 . 65 35 . . . . 73 . . . 1166 Absorbed by Shields 121 | . . . . . . . . . . . . . . . . . . . 121 . . Ignored by Resistances 90 | . . . 21 66 3 . . . . . . . . . . . . . . . . Regen/Repaired (Parts) 262 | . 89 . . . 13 . . . . . . 55 . . . . 39 . 66 . . Core Remaining (%) 79 | 100 . 6 83 93 . . . . . . 84 . . . . 95 . . . 92 . Volleys Fired 502 | 8 101 11 59 61 12 . 1 17 3 3 6 8 18 24 . 18 14 4 55 10 69 Largest 2 | 2 2 2 2 2 2 . 2 2 2 1 1 1 1 1 . 1 1 1 1 1 2 Hottest 123 | 40 90 90 90 110 110 . 110 118 123 60 60 85 85 85 . 85 85 46 76 46 120 Shots Fired 753 | 16 201 20 118 117 15 . 3 24 6 3 6 8 18 24 . 18 14 4 55 10 73 Gun 504 | 16 199 10 118 113 14 . 3 7 3 3 4 . . . . . . . . . 14 Cannon 112 | . . . . . . . . 5 3 . . 8 18 24 . 9 12 . 1 . 32 Launcher 129 | . 2 10 . 4 1 . . 12 . . . . . . . 5 . 4 54 10 27 Special 8 | . . . . . . . . . . . 2 . . . . 4 2 . . . . Kinetic 83 | 16 63 . . 3 . . . . . . . . . . . . . . 1 . . Thermal 209 | . 106 . . . . . . . . . . 8 18 24 . 9 12 . . . 32 Explosive 137 | . 2 10 . 4 1 . . 12 . . 2 . . . . 9 2 4 54 10 27 Electromagnetic 310 | . 30 10 118 110 14 . 3 12 6 3 4 . . . . . . . . . . Entropic 14 | . . . . . . . . . . . . . . . . . . . . . 14 Robot Hit Streak 29 | 12 14 3 11 9 4 . . 6 . . 2 . 3 10 . 14 16 . 19 . 29 Robot Miss Streak 8 | 1 8 2 6 3 4 . 3 4 . . 7 . 8 1 . . . . . . 4 Penetration Max . | . . . . . . . . . . . . . . . . . . . . . . Secondary Targets 5 | . 1 . 3 1 . . . . . . . . . . . . . . . . . Max Gunslinging Chain 1 | . 1 . 1 1 . . . . . . . . . . . . . . . . . Shots Hit Robots 373 | 13 120 8 55 76 9 . . 13 . . 2 2 8 13 . 4 2 . 3 . 45 Core Hits 442 | 6 60 10 27 44 6 . . 23 . . 5 . 4 3 . 15 4 4 161 12 58 Critical Kills 1 | . . . . . . . . . . . . . . 1 . . . . . . . Critical Parts Destroyed 10 | . . . . . . . . . . . . 1 . . . . . . . . 9 Critical Strikes 16 | . . . 1 1 . . . . . . 2 1 . 1 . 1 . . . . 9 Meltdown 1 | . . . . . . . . . . . . . . 1 . . . . . . . Corrupt 2 | . . . 1 1 . . . . . . . . . . . . . . . . . Smash 7 | . . . . . . . . . . . . 1 . . . . . . . . 6 Sever 3 | . . . . . . . . . . . 2 . . . . 1 . . . . . Detonate 3 | . . . . . . . . . . . . . . . . . . . . . 3 Melee Attacks 97 | . . . 3 1 9 . . 5 . 1 . 25 . . . . 12 . . . 41 Impact 97 | . . . 3 1 9 . . 5 . 1 . 25 . . . . 12 . . . 41 Slashing . | . . . . . . . . . . . . . . . . . . . . . . Piercing . | . . . . . . . . . . . . . . . . . . . . . . Sneak Attacks 7 | . . . . . 2 . . 3 . . . 1 . . . . . . . . 1 Combat Hostiles . | . . . . . . . . . . . . . . . . . . . . . . Follow-up Attacks . | . . . . . . . . . . . . . . . . . . . . . . Damage Inflicted 28611 | 98 1573 678 1197 2214 685 . . 1747 . . 714 159 214 431 . 827 515 543 9741 694 6581 Guns 5017 | 98 1248 79 959 1641 153 . . 44 . . 13 . . . . . . . . . 782 Cannons 1040 | . . . . . . . . 103 . . . . 214 431 . . . . . . 292 Explosions 20707 | . 325 599 238 573 288 . . 1133 . . 640 . . . . 681 431 543 9741 694 4821 Melee 1556 | . . . . . 244 . . 467 . . . 159 . . . . . . . . 686 Ramming 22 | . . . . . . . . . . . . . . . . . 22 . . . . Kinetic 517 | 98 368 . . 51 . . . . . . . . . . . . . . . . . Thermal 4113 | . 730 106 238 252 . . . 84 . . . . 214 431 . . 248 . . . 1810 Explosive 18226 | . 325 493 . 321 288 . . 1049 . . 640 . . . . 681 183 543 9741 694 3268 Electromagnetic 3126 | . 150 79 959 1590 153 . . 147 . . 13 . . . . . . . . . 35 Impact 1556 | . . . . . 244 . . 467 . . . 159 . . . . . . . . 686 Slashing 269 | . . . . . . . . . . . 61 . . . . 146 62 . . . . Piercing . | . . . . . . . . . . . . . . . . . . . . . . Entropic 782 | . . . . . . . . . . . . . . . . . . . . . 782 Highest Corruption 7 | . . . 6 . . 7 7 7 7 7 . . . . . . 1 1 1 . 5 Average Corruption 3 | . . . 2 . . 7 7 7 7 7 . . . . . . 1 1 1 . 1 Corruption Purged . | . . . . . . . . . . . . . . . . . . . . . . Corruption Blocked . | . . . . . . . . . . . . . . . . . . . . . . Effects 82 | . . . 21 . . 1 3 30 18 . . . . . . . . 4 . . 5 Message Errors 20 | . . . 7 . . . 1 5 5 . . . . . . . . 1 . . 1 Matter Fused 19 | . . . 2 . . 1 . 9 4 . . . . . . . . 1 . . 2 Heat Flow Errors 9 | . . . 3 . . . 1 4 . . . . . . . . . 1 . . . Energy Discharges 13 | . . . 2 . . . . 6 4 . . . . . . . . . . . 1 Parts Rejected 2 | . . . 2 . . . . . . . . . . . . . . . . . . Parts Fused 2 | . . . . . . . . 1 . . . . . . . . . . . . 1 Data Loss (minor) 10 | . . . 1 . . . . 4 4 . . . . . . . . 1 . . . Data Loss (major) 1 | . . . . . . . . . 1 . . . . . . . . . . . . Misfires 3 | . . . 1 . . . 1 1 . . . . . . . . . . . . . Alerts 2 | . . . 2 . . . . . . . . . . . . . . . . . . Weapon Failures 1 | . . . 1 . . . . . . . . . . . . . . . . . . Overload Shots . | . . . . . . . . . . . . . . . . . . . . . . Overflow Damage 2272 | . . 26 10 5 243 . . 470 . . 73 137 15 21 . 95 77 57 123 5 915 Projectiles 107 | . . . . . . . . 27 . . . . 15 21 . . . . . . 44 Explosions 1030 | . . 26 10 5 49 . . 50 . . 73 . . . . 95 77 57 123 5 460 Melee 1135 | . . . . . 194 . . 393 . . . 137 . . . . . . . . 411 Knockbacks 4 | . . . . . 1 . . . . . . . . . . . . . . . 3 Impact 4 | . . . . . 1 . . . . . . . . . . . . . . . 3 Kinetic . | . . . . . . . . . . . . . . . . . . . . . . Secondary . | . . . . . . . . . . . . . . . . . . . . . . Self-Inflicted Damage 624 | . . 71 31 30 33 . . 68 . . . . . . . . 76 . . . 315 Shots 14 | . . 2 1 2 1 . . 3 . . . . . . . . 1 . . . 4 Rammed 1 | . . . . . . . . . . . . . . . . . 1 . . . . Targets Rammed 1 | . . . . . . . . . . . . . . . . . 1 . . . . Kicked . | . . . . . . . . . . . . . . . . . . . . . . Crushed . | . . . . . . . . . . . . . . . . . . . . . . Highest Temperature 402 | . 56 174 402 57 15 . 328 207 342 36 64 84 144 264 . 72 160 195 26 14 275 Average Temperature 71 | . 17 66 114 19 14 . 115 98 116 18 31 36 49 111 . 33 52 141 6 3 71 Received Heat Transfer 1731 | . 426 24 213 378 15 . . . . . 81 36 . . . 9 . . . . 549 Effects 3 | . . . 1 . . . . . . . . . . . . . . . . . 2 Interference 2 | . . . . . . . . . . . . . . . . . . . . . 2 Matter Decay 1 | . . . 1 . . . . . . . . . . . . . . . . . . Siege Activations . | . . . . . . . . . . . . . . . . . . . . . . Martial Activations . | . . . . . . . . . . . . . . . . . . . . . . Shielding Activations . | . . . . . . . . . . . . . . . . . . . . . . Robots Disrupted 1 | . . . . 1 . . . . . . . . . . . . . . . . . Combat Hostiles 1 | . . . . 1 . . . . . . . . . . . . . . . . . Robots Corrupted 9 | . . . 1 3 1 . . . . . . 1 . . . . . . . . 3 Combat Hostiles 3 | . . . . 3 . . . . . . . . . . . . . . . . . Parts Fried 23 | . 2 . 5 7 5 . . . . . . 2 . . . . . . . . 2 Impact Corruptions 24 | . . . . . 3 . . 5 . . . 4 . . . . . . . . 12 Robots Melted 1 | . . . . . . . . . . . . . . 1 . . . . . . . Combat Hostiles . | . . . . . . . . . . . . . . . . . . . . . . Parts Melted 9 | . 7 . . . . . . . . . . . . 2 . . . . . . . Heat Transferred 5029 | . 1930 100 250 200 . . . 50 . . . . 259 629 . . 150 . . . 1461 Parts Sabotaged . | . . . . . . . . . . . . . . . . . . . . . . Parts Stolen . | . . . . . . . . . . . . . . . . . . . . . . Parts Stripped . | . . . . . . . . . . . . . . . . . . . . . . Power Chain Reactions 10 | . . 1 4 3 1 . . 1 . . . . . . . . . . . . . Alert | -11 -10 -10 -9 -8 -7 -7 -7 -7 -7 -7 -6 -6 -6 -6 -6 -5 -5 -5 -5 -4 -4 ------- Run | Yrd Mat Min Mat Mat Fac Was Fac Low Low Zio Pro Fac Low Low Dat Pro Fac Upp War Pro Fac Maximum Alert Level 3 | . 1 . 1 1 . . . . . . . . . . . . . . . . 3 Low Security (%) 80 | 100 91 100 76 83 100 100 100 . . . . 100 . . . . 100 . . . 3 Level 1 10 | . 8 . 23 16 . . . . . . . . . . . . . . . . 29 Level 2 7 | . . . . . . . . . . . . . . . . . . . . . 58 Level 3 1 | . . . . . . . . . . . . . . . . . . . . . 8 Level 4 . | . . . . . . . . . . . . . . . . . . . . . . Level 5 . | . . . . . . . . . . . . . . . . . . . . . . High Security . | . . . . . . . . . . . . . . . . . . . . . . Max Security . | . . . . . . . . . . . . . . . . . . . . . . Peak Influence 950 | 5 244 181 260 304 84 25 22 . . . . 66 . . . . 145 . . . 950 Initial 103 | . 3 . 13 103 50 25 10 . . . . . . . . . . . . . 56 Average 113 | 2 107 48 66 114 17 20 5 . . . . 10 . . . . 8 . . . 472 Influence Increases 6961 | 15 488 277 553 614 338 . 24 340 . . 150 194 25 . . 246 330 90 1351 160 1766 Destroy 0b10 Robot/C 3440 | . 260 180 320 340 60 . . 280 . . 100 20 20 . . 200 40 80 900 140 500 Destroy 0b10 Robot/NC 290 | 15 60 5 40 65 25 . . 5 . . . 10 5 . . . . . 25 . 35 Destroy Leader 516 | . 70 30 90 88 12 . . 40 . . 20 12 . . . 10 10 10 . 20 104 Allied During Kill 282 | . . . . . . . . . . . . . . . . 21 . . 261 . . Successful Hack 216 | . 21 . 12 6 85 . 24 . . . . 49 . . . . 3 . . . 16 Disable Machine 330 | . 15 . 60 45 15 . . . . . . . . . . . 15 . . . 180 Anti-Garrison Action 150 | . . . . . . . . . . . . . . . . . . . . . 150 Destroy Structure 747 | . 17 62 16 25 21 . . . . . . 28 . . . . 142 . . . 436 Partial Spotted 45 | . . . . . . . . . . . . . . . . . . . . . 45 Lose Combat Pursuer 945 | . 45 . 15 45 120 . . 15 . . 30 75 . . . 15 120 . 165 . 300 Influence Decreases 6075 | 10 493 243 341 748 378 57 39 256 84 . 150 149 70 . . 246 260 136 340 1105 970 Entered New Map 1434 | . 2 . 21 143 62 47 5 . 17 . . . 18 . . . . 26 24 1035 34 Time Decay 3553 | 10 426 243 310 395 310 10 34 256 67 . 140 129 52 . . 186 93 110 206 70 506 Lost Part 406 | . 10 . 10 40 6 . . . . . 10 . . . . . 30 . 30 . 270 Lost Ally 190 | . . . . 20 . . . . . . . 20 . . . 60 . . 80 . 10 Purge Threat 492 | . 55 . . 150 . . . . . . . . . . . . 137 . . . 150 Squads Dispatched 49 | . 4 . 3 4 5 . 3 . . . . 5 . . . 1 8 . . . 16 Investigation 17 | . 2 . 1 . 2 . 2 . . . . 2 . . . . 6 . . . 2 Extermination 10 | . . . . . 3 . . . . . . 2 . . . . 1 . . . 4 Reinforcement 12 | . 2 . 2 1 . . 1 . . . . 1 . . . . 1 . . . 4 Assault 7 | . . . . . . . . . . . . . . . . 1 . . . . 6 Garrison 3 | . . . . 3 . . . . . . . . . . . . . . . . . Intercept . | . . . . . . . . . . . . . . . . . . . . . . Searches Triggered . | . . . . . . . . . . . . . . . . . . . . . . Data Miner Redirects 4 | . . . . . . . . . . . . . . . . . . . . . 4 Construction Impeded 3 | . . . . 1 . . . . . . . . . . . . 1 . . . 1 Haulers Reinforced 2 | . . . . . . . . . . . . . . . . . . . . . 2 Active Scanning Responses . | . . . . . . . . . . . . . . . . . . . . . . Cargo Convoy Interrupts . | . . . . . . . . . . . . . . . . . . . . . . Stealth | -11 -10 -10 -9 -8 -7 -7 -7 -7 -7 -7 -6 -6 -6 -6 -6 -5 -5 -5 -5 -4 -4 --------- Run | Yrd Mat Min Mat Mat Fac Was Fac Low Low Zio Pro Fac Low Low Dat Pro Fac Upp War Pro Fac Distress Signals 17 | . 3 . . 2 2 . . . . . . 2 . . . . 3 . 2 . 3 Communications Jammed 5 | . . . . . . . . . . . . . . . . . . . . . 5 Distress Signals 5 | . . . . . . . . . . . . . . . . . . . . . 5 Times Spotted 246 | . 35 9 21 28 17 4 1 12 . . 8 10 4 . . 5 12 . 22 . 58 Peak Tracking Total 17 | . 5 3 5 5 5 5 1 4 . . 8 5 1 . . 9 10 2 17 2 9 Tactical Retreats 33 | . 2 . 1 3 3 . . 1 . . 1 4 1 . . 1 3 . 4 . 9 Traps | -11 -10 -10 -9 -8 -7 -7 -7 -7 -7 -7 -6 -6 -6 -6 -6 -5 -5 -5 -5 -4 -4 ------- Run | Yrd Mat Min Mat Mat Fac Was Fac Low Low Zio Pro Fac Low Low Dat Pro Fac Upp War Pro Fac Traps Triggered 10 | . 5 . 3 . 1 . . . 1 . . . . . . . . . . . . Indirectly . | . . . . . . . . . . . . . . . . . . . . . . Trap Hack Attempts . | . . . . . . . . . . . . . . . . . . . . . . Triggered . | . . . . . . . . . . . . . . . . . . . . . . Disarmed . | . . . . . . . . . . . . . . . . . . . . . . Reprogrammed . | . . . . . . . . . . . . . . . . . . . . . . Reused . | . . . . . . . . . . . . . . . . . . . . . . Traps Extracted . | . . . . . . . . . . . . . . . . . . . . . . Installed . | . . . . . . . . . . . . . . . . . . . . . . Triggered . | . . . . . . . . . . . . . . . . . . . . . . Machines | -11 -10 -10 -9 -8 -7 -7 -7 -7 -7 -7 -6 -6 -6 -6 -6 -5 -5 -5 -5 -4 -4 ---------- Run | Yrd Mat Min Mat Mat Fac Was Fac Low Low Zio Pro Fac Low Low Dat Pro Fac Upp War Pro Fac Machines Disabled 26 | . 1 . 4 3 1 . . . . . . . 1 1 . 1 1 . . . 13 Max in Single Turn 4 | . 1 . 1 1 1 . . . . . . . 1 1 . 1 1 . . . 4 Garrison Access 5 | . . . . . 1 . . . . . . 1 . . . . 1 . . . 2 Machines Repaired . | . . . . . . . . . . . . . . . . . . . . . . Machines Dismantled . | . . . . . . . . . . . . . . . . . . . . . . Machines Sabotaged . | . . . . . . . . . . . . . . . . . . . . . . Overloaded Fab Kills . | . . . . . . . . . . . . . . . . . . . . . . Hacking | -11 -10 -10 -9 -8 -7 -7 -7 -7 -7 -7 -6 -6 -6 -6 -6 -5 -5 -5 -5 -4 -4 --------- Run | Yrd Mat Min Mat Mat Fac Was Fac Low Low Zio Pro Fac Low Low Dat Pro Fac Upp War Pro Fac Machines Accessed 96 | . 6 1 6 9 19 . 5 1 3 . . 13 . 1 4 . 16 . 1 . 11 Terminals 48 | . 4 . 5 8 9 . 2 . . . . 8 . . . . 6 . . . 6 Fabricators 13 | . . . . . 2 . 2 . . . . 2 . . . . 5 . . . 2 Repair Stations 9 | . 1 . . 1 3 . . . . . . 2 . . . . 2 . . . . Recycling Units 6 | . 1 . . . 1 . 1 . . . . . . . . . 1 . . . 2 Scanalyzers 3 | . . . 1 . 1 . . . . . . . . . . . 1 . . . . Garrison Access 6 | . . . . . 3 . . . . . . 1 . . . . 1 . . . 1 Total Hacks 262 | . 16 1 17 19 46 . 11 1 7 . . 34 . 1 28 . 36 . 1 . 44 Successful 170 | . 9 1 3 6 28 . 8 1 7 . . 21 . 1 28 . 31 . 1 . 25 Failed 90 | . 7 . 14 13 18 . 3 . . . . 12 . . . . 4 . . . 19 Catastrophic 11 | . 1 . 4 1 3 . . . . . . . . . . . . . . . 2 Database Lockouts 2 | . . . . . . . . . . . . 1 . . . . 1 . . . . Manual 116 | . 8 . 13 11 14 . 3 . . . . 22 . . . . 12 . 1 . 32 Terminals 139 | . 10 . 16 18 25 . 3 . . . . 26 . . . . 14 . . . 27 Fabricators 40 | . . . . . 4 . 7 . . . . 3 . . . . 13 . . . 13 Repair Stations 18 | . 4 . . 1 5 . . . . . . 4 . . . . 4 . . . . Recycling Units 8 | . 2 . . . 1 . 1 . . . . . . . . . 1 . . . 3 Scanalyzers 7 | . . . 1 . 4 . . . . . . . . . . . 2 . . . . Garrison Access 11 | . . . . . 7 . . . . . . 1 . . . . 2 . . . 1 Terminal Hacks 89 | . 3 1 1 2 10 . 2 1 7 . . 11 . 1 28 . 10 . 1 . 11 Record 16 | . . . . . . . . . 5 . . . . . 11 . . . . . . Part Schematic 17 | . . . . . 1 . . . . . . 2 . . 10 . 3 . . . 1 Robot Schematic 4 | . . . . . . . . . . . . . . . 4 . . . . . . Robot Analysis 2 | . . . . . 1 . . . . . . 1 . . . . . . . . . Prototype ID Bank 4 | . . . . . 1 . . . . . . . . . 3 . . . . . . Open Door 6 | . . 1 . . . . . 1 2 . . . . 1 . . . . 1 . . Branch Access Points 4 | . . . . . 1 . 1 . . . . 1 . . . . 1 . . . . Machine Index 2 | . . . . . 1 . . . . . . . . . . . 1 . . . . Terminal Index 3 | . . . . 1 1 . . . . . . . . . . . . . . . 1 Fabricator Index 2 | . . . . . . . . . . . . 1 . . . . . . . . 1 Scanalyzer Index 1 | . . . 1 . . . . . . . . . . . . . . . . . . Alert Level 1 | . . . . . . . . . . . . . . . . . . . . . 1 Unreport Threat 4 | . 1 . . 1 . . . . . . . . . . . . 1 . . . 1 Locate Traps 3 | . 1 . . . . . . . . . . . . . . . 2 . . . . Recall Extermination 2 | . . . . . 1 . . . . . . 1 . . . . . . . . . Recall Assault 2 | . . . . . . . . . . . . . . . . . . . . . 2 Registered Components 3 | . 1 . . . . . . . . . . 1 . . . . . . . . 1 Registered Prototypes 1 | . . . . . . . . . . . . 1 . . . . . . . . . Zone Layout 12 | . . . . . 3 . 1 . . . . 3 . . . . 2 . . . 3 Fabricator Hacks 19 | . . . . . 2 . 3 . . . . . . . . . 8 . . . 6 Network Status 2 | . . . . . . . 1 . . . . . . . . . 1 . . . . Load Schematic 14 | . . . . . 2 . 2 . . . . . . . . . 6 . . . 4 Build 3 | . . . . . . . . . . . . . . . . . 1 . . . 2 Repair Station Hacks 16 | . 4 . . . 4 . . . . . . 4 . . . . 4 . . . . Scan Component 9 | . 2 . . . 3 . . . . . . 2 . . . . 2 . . . . Repair 7 | . 2 . . . 1 . . . . . . 2 . . . . 2 . . . . Recycling Unit Hacks 5 | . . . . . 1 . 1 . . . . . . . . . 1 . . . 2 Retrieve Components 5 | . . . . . 1 . 1 . . . . . . . . . 1 . . . 2 Scanalyzer 7 | . . . 1 . 4 . . . . . . . . . . . 2 . . . . Insert Component 4 | . . . 1 . 2 . . . . . . . . . . . 1 . . . . Analyze 3 | . . . . . 2 . . . . . . . . . . . 1 . . . . Garrison Access Hacks 4 | . . . . . 1 . . . . . . 1 . . . . 1 . . . 1 Seal Access 4 | . . . . . 1 . . . . . . 1 . . . . 1 . . . 1 Unauthorized Hacks 30 | . 2 . 1 4 6 . 2 . . . . 5 . . . . 5 . . . 5 Terminals 15 | . 2 . 1 4 4 . . . . . . 3 . . . . . . . . 1 Assimilate 3 | . . . . . 2 . . . . . . . . . . . . . . . 1 Botnet 8 | . 1 . 1 2 2 . . . . . . 2 . . . . . . . . . Disrupt 2 | . . . . 2 . . . . . . . . . . . . . . . . . Operators 2 | . 1 . . . . . . . . . . 1 . . . . . . . . . Fabricators 15 | . . . . . 2 . 2 . . . . 2 . . . . 5 . . . 4 Prioritize 2 | . . . . . . . . . . . . . . . . . . . . . 2 Recompile 13 | . . . . . 2 . 2 . . . . 2 . . . . 5 . . . 2 Repair Stations . | . . . . . . . . . . . . . . . . . . . . . . Recycling Units . | . . . . . . . . . . . . . . . . . . . . . . Scanalyzers . | . . . . . . . . . . . . . . . . . . . . . . Garrison Access . | . . . . . . . . . . . . . . . . . . . . . . Data Cores Recovered 1 | . . . . 1 . . . . . . . . . . . . . . . . . Used . | . . . . . . . . . . . . . . . . . . . . . . Hacking Detections 69 | . 6 . 6 9 14 . 3 . . . . 10 . . . . 13 . . . 8 Full Trace Events 2 | . . . 1 . . . . . . . . . . . . . 1 . . . . Feedback Events . | . . . . . . . . . . . . . . . . . . . . . . Feedback Blocked . | . . . . . . . . . . . . . . . . . . . . . . Robot Schematics Acquired 8 | . . . . . . . . . . 4 . . . . 4 . . . . . . Robots Built . | . . . . . . . . . . . . . . . . . . . . . . Authchips . | . . . . . . . . . . . . . . . . . . . . . . Time . | . . . . . . . . . . . . . . . . . . . . . . Total Robot Build Rating . | . . . . . . . . . . . . . . . . . . . . . . Part Schematics Acquired 33 | . . . . . 2 . . . . 14 . 2 . . 10 . 4 . . . 1 Parts Built 4 | . . . . . . . . . . . . . . . . . 1 . . . 3 Authchips 3 | . . . . . . . . . . . . . . . . . 1 . . . 2 Time 137 | . . . . . . . . . . . . . . . . . 53 . . . 84 Total Part Build Rating 22 | . . . . . . . . . . . . . . . . . 6 . . . 16 Parts Repaired 7 | . 2 . . . 1 . . . . . . 2 . . . . 2 . . . . Time 180 | . 52 . . . 19 . . . . . . 33 . . . . 76 . . . . Parts Recycled . | . . . . . . . . . . . . . . . . . . . . . . Recycled Matter . | . . . . . . . . . . . . . . . . . . . . . . Retrieved Matter . | . . . . . . . . . . . . . . . . . . . . . . Retrieved Components 11 | . . . . . 6 . 1 . . . . . . . . . . . . . 4 Parts Scanalyzed 3 | . . . . . 2 . . . . . . . . . . . 1 . . . . Part Schematics Acquired 2 | . . . . . 1 . . . . . . . . . . . 1 . . . . Parts Damaged . | . . . . . . . . . . . . . . . . . . . . . . Bothacking | -11 -10 -10 -9 -8 -7 -7 -7 -7 -7 -7 -6 -6 -6 -6 -6 -5 -5 -5 -5 -4 -4 ------------ Run | Yrd Mat Min Mat Mat Fac Was Fac Low Low Zio Pro Fac Low Low Dat Pro Fac Upp War Pro Fac Used RIF Installer . | . . . . . . . . . . . . . . . . . . . . . . Robots Hacked . | . . . . . . . . . . . . . . . . . . . . . . Non-combat . | . . . . . . . . . . . . . . . . . . . . . . Combat . | . . . . . . . . . . . . . . . . . . . . . . Robot Hacks Applied . | . . . . . . . . . . . . . . . . . . . . . . Relay Couplers Released 1 | . . . . . . . . . . . . . . . . . . . . . 1 Machine Destruction 1 | . . . . . . . . . . . . . . . . . . . . . 1 Fabnet Peak Effective % . | . . . . . . . . . . . . . . . . . . . . . . Robots Rewired 12 | . . . . 1 . . . . . . . 1 4 . . 1 . . 5 . . Allies Hacked . | . . . . . . . . . . . . . . . . . . . . . . Hacks Repelled . | . . . . . . . . . . . . . . . . . . . . . . Allies | -11 -10 -10 -9 -8 -7 -7 -7 -7 -7 -7 -6 -6 -6 -6 -6 -5 -5 -5 -5 -4 -4 -------- Run | Yrd Mat Min Mat Mat Fac Was Fac Low Low Zio Pro Fac Low Low Dat Pro Fac Upp War Pro Fac Total Allies 15 | . . . . 1 2 . . . . . . 1 4 . . 1 . . 5 . 1 Largest Group 5 | . . . . 1 2 . 2 2 . . . 1 4 3 3 3 . . 5 . 1 Highest-Rated Group 278 | . . . . 15 36 . 36 36 . . . 32 116 87 87 87 . . 278 . 10 Highest-Rated Ally 68 | . . . . 15 26 . 26 26 . . . 32 29 29 29 30 . . 68 . 10 Total Orders 21 | . . . . . 2 . . 4 . . . . . 1 . . . . 14 . . STAY 10 | . . . . . 1 . . 2 . . . . . . . . . . 7 . . FOLLOW 10 | . . . . . 1 . . 2 . . . . . . . . . . 7 . . RETURN 1 | . . . . . . . . . . . . . . 1 . . . . . . . Ally Attacks 38 | . . . . 4 . . . . . . . 3 6 . . 17 . . 8 . . Total Damage 905 | . . . . 60 . . . . . . . 47 94 . . 304 . . 400 . . Kills 8 | . . . . . . . . . . . . 1 1 . . 1 . . 5 . . Allies Corrupted 1 | . . . . . . . . . . . . . . . . 1 . . . . . Allies Melted 2 | . . . . . . . . . . . . . . 1 . . . . 1 . . Intel | -11 -10 -10 -9 -8 -7 -7 -7 -7 -7 -7 -6 -6 -6 -6 -6 -5 -5 -5 -5 -4 -4 ------- Run | Yrd Mat Min Mat Mat Fac Was Fac Low Low Zio Pro Fac Low Low Dat Pro Fac Upp War Pro Fac Active Infowar (turns) 10559 | . . . 1202 566 1083 34 124 760 534 368 415 1335 490 261 93 514 877 220 837 . 846 Sensors 10549 | . . . 1202 566 1083 34 124 760 534 368 415 1335 490 261 93 514 877 220 837 . 836 Jamming 47 | . . . . . . . . . . . . . . . . . . . . . 47 Robot Analysis Total 2 | . . . . . 1 . . . . . . 1 . . . . . . . . . Derelict Logs Recovered 15 | . . 1 . . . . . 3 2 2 2 . 2 1 . 1 . 1 . . . Drone Launches 2 | . . . . . . . . . . . . . . 1 . . 1 . . . . Drone Recoveries 1 | . . . . . . . . . . . . . . 1 . . . . . . . Exploration | -11 -10 -10 -9 -8 -7 -7 -7 -7 -7 -7 -6 -6 -6 -6 -6 -5 -5 -5 -5 -4 -4 ------------- Run | Yrd Mat Min Mat Mat Fac Was Fac Low Low Zio Pro Fac Low Low Dat Pro Fac Upp War Pro Fac Turns Passed 14896 | 78 1346 813 1454 1433 1100 34 124 806 534 368 415 1349 490 262 93 514 932 220 975 184 1372 Spaces Moved 15599 | 44 741 528 755 767 1832 77 240 1314 953 778 337 1773 796 320 85 436 1074 202 922 228 1397 Core 9 | 5 . . . . . . . . . . . . . . . . . . . . 4 Treads . | . . . . . . . . . . . . . . . . . . . . . . Legs . | . . . . . . . . . . . . . . . . . . . . . . Wheels 2830 | 39 741 528 755 767 . . . . . . . . . . . . . . . . . Hover 12760 | . . . . . 1832 77 240 1314 953 778 337 1773 796 320 85 436 1074 202 922 228 1393 Flight . | . . . . . . . . . . . . . . . . . . . . . . Fastest Speed 36 | 50 90 135 135 116 44 44 44 44 44 44 44 44 44 44 102 102 40 102 36 39 36 Average Speed 65 | 93 118 135 143 127 44 44 44 44 44 44 48 44 44 51 102 102 56 102 59 48 55 Slowest Speed 200 | 200 135 135 150 155 44 44 44 164 108 44 108 48 44 102 102 102 102 102 151 151 157 Overloaded Moves 32 | . . . . . . . . . . . . . . . . . . . . . 32 Propulsion Burnouts . | . . . . . . . . . . . . . . . . . . . . . . Robots Hopped . | . . . . . . . . . . . . . . . . . . . . . . Potential Cave-ins . | . . . . . . . . . . . . . . . . . . . . . . Cave-ins Triggered . | . . . . . . . . . . . . . . . . . . . . . . Exploration Rate (%) 56 | 4 84 92 53 59 40 87 8 89 98 83 57 33 87 42 70 60 24 21 84 29 44 Regions Visited 21 Branch Regions 12 Pre-discovered Areas 9 | . . 1 . . . . . 2 1 2 . . 2 . 1 . . . . . . Known Exits Taken 16 | . . . 1 1 . . 1 1 1 1 1 1 1 1 1 1 1 1 1 1 . Unknown Exits Taken 3 | 1 1 1 . . . . . . . . . . . . . . . . . . . Scrap Searched 23 | . . 1 . . . . . 2 3 5 3 . 4 . . 3 . . . 2 . Spaces Dug 212 | . 16 22 3 1 6 . . 69 . . . 24 1 1 . 25 18 . . . 26 Terrain Destroyed 1262 | . 16 62 14 22 20 . . 161 . . 23 30 8 6 . 70 87 54 232 173 284 Melee 66 | . . . 3 1 6 . . 1 . . . 22 . . . . 12 . . . 21 Projectile 74 | . . . . . . . . . . . . 8 8 6 . 9 12 . 1 . 30 AOE 1122 | . 16 62 11 21 14 . . 160 . . 23 . . . . 61 63 54 231 173 233 Terrain Rammed . | . . . . . . . . . . . . . . . . . . . . . . Walls Destroyed . | . . . . . . . . . . . . . . . . . . . . . . Machines Disabled . | . . . . . . . . . . . . . . . . . . . . . . Actions | -11 -10 -10 -9 -8 -7 -7 -7 -7 -7 -7 -6 -6 -6 -6 -6 -5 -5 -5 -5 -4 -4 --------- Run | Yrd Mat Min Mat Mat Fac Was Fac Low Low Zio Pro Fac Low Low Dat Pro Fac Upp War Pro Fac Total 19388 | 64 1052 614 1003 1118 2104 76 255 1495 1056 797 583 2279 917 392 90 483 1368 212 1293 289 1848 Wait 2581 | 2 127 44 139 223 187 . 8 133 98 4 239 449 82 42 5 20 227 5 246 52 249 Move 15579 | 43 740 527 754 766 1832 76 239 1313 952 777 336 1772 795 319 84 435 1073 201 921 227 1397 Hop . | . . . . . . . . . . . . . . . . . . . . . . Pick Up 135 | 5 31 9 9 21 12 . 2 2 1 2 . 5 1 3 . . 9 . 7 . 16 Fast Attach 54 | 6 7 1 4 2 1 . . . . 2 . 3 . 1 . . 4 . 8 . 15 Attach 55 | . . . 2 3 5 . . . . . 1 3 . 1 . 1 12 1 3 . 23 Detach 26 | . . . 1 . 1 . . . . . 1 . . . . . 10 1 3 . 9 Swap 172 | . 29 9 22 17 21 . 3 22 1 4 . 8 2 2 1 6 1 . 16 . 8 Drop 145 | . 17 13 10 23 24 . 2 3 1 4 . 3 1 . . . 5 . 18 . 21 Fire 502 | 8 101 11 59 61 12 . 1 17 3 3 6 8 18 24 . 18 14 4 55 10 69 Melee 97 | . . . 3 1 9 . . 5 . 1 . 25 . . . . 12 . . . 41 Ram 1 | . . . . . . . . . . . . . . . . . 1 . . . . Kick . | . . . . . . . . . . . . . . . . . . . . . . Crush . | . . . . . . . . . . . . . . . . . . . . . . Escape Stasis . | . . . . . . . . . . . . . . . . . . . . . . Rewire 41 | . . . . 1 . . . . . . . 3 18 . . 3 . . 16 . . Trap . | . . . . . . . . . . . . . . . . . . . . . . Miscellaneous . | . . . . . . . . . . . . . . . . . . . . . . Route ------- -11/Scrapyard -10/Materials (discovered 3 exits: *Mat x2 / *Min) -10/Mines -9/Materials (discovered 3 exits: *Mat x2 / *Min) -8/Materials -7/Factory (discovered 3 exits: *Fac / Low x2) -7/Waste -7/Factory (discovered 2 exits: *Low x2) -7/Lower Caves -7/Lower Caves (discovered 2 exits: *Fac / *Zio) -7/Zion (discovered 2 exits: Dee / *Pro) -6/Proximity Caves -6/Factory (discovered 4 exits: *Fac x2 / *Low x2) -6/Lower Caves -6/Lower Caves (discovered 2 exits: *Fac / *Dat) -6/Data Miner -5/Proximity Caves -5/Factory (discovered 4 exits: *Upp x2 / Ext x2) -5/Upper Caves -5/Warlord -4/Proximity Caves -4/Factory (discovered 2 exits: *Res x2) History --------- Turn | Location | Event 13 | -11/Scrapyard | Discovered new exit (range 16) 79 | -11/Scrapyard | Entered Materials 80 | -10/Materials | Met a group of wandering Federalists 91 | -10/Materials | Angered wandering Federalists 468 | -10/Materials | Core integrity fell below 50% 658 | -10/Materials | Core integrity fell below 20% 711 | -10/Materials | Discovered new exit (range 12) 1194 | -10/Materials | Discovered new exit (range 8) 1231 | -10/Materials | Repaired Salvaging Laser 1258 | -10/Materials | Repaired Salvaging Laser 1334 | -10/Materials | Build established: Mutant 1367 | -10/Materials | Discovered new exit (range 13) 1425 | -10/Materials | Entered Mines 1451 | -10/Mines | Found a damaged Exp. Sensor Array with a note attached 1454 | -10/Mines | Found Prototype Device 1621 | -10/Mines | Received a Rocket Launcher from a helpful Derelict 1755 | -10/Mines | Found a Scrap Suit stashed away for nefarious purposes 1907 | -10/Mines | Met a Derelict who couldn't figure out how to use a Trap Extractor 2149 | -10/Mines | Learned location of Zion (-7) 2230 | -10/Mines | Discovered new exit (range 6) 2238 | -10/Mines | Entered Materials 2238 | -9/Materials | Evolved 2 slots: Utility x2 2761 | -9/Materials | Discovered new exit (range 10) 2909 | -9/Materials | Discovered new exit (range 11) 2946 | -9/Materials | Identified Exp. Sensor Array 3087 | -9/Materials | Identified exit to Mines 3358 | -9/Materials | Discovered new exit (range 10) 3690 | -9/Materials | Identified exit to Materials 3692 | -9/Materials | Entered another Materials area 3692 | -8/Materials | Evolved 2 slots: Propulsion x2 4504 | -8/Materials | Garrison activated, responded to threat 5011 | -8/Materials | Discovered new exit (range 7) 5124 | -8/Materials | Identified exit to Factory 5125 | -8/Materials | Entered Factory 5125 | -7/Factory | Evolved 2 slots: Propulsion x1, Utility x1 5253 | -7/Factory | Discovered new exit (range 14) 5259 | -7/Factory | Identified exit to Factory 5343 | -7/Factory | Identified exit to Lower Caves 5792 | -7/Factory | Repaired Airjet 6225 | -7/Factory | Manually triggered Chute Trap 6225 | -7/Factory | Sucked down chute 6225 | -7/Factory | Entered Waste 6235 | -7/Waste | Spotted C-40 Crusher 6238 | -7/Waste | Spotted C-40 Crusher 6240 | -7/Waste | EMP discharged 6242 | -7/Waste | Spotted C-40 Crusher 6252 | -7/Waste | Spotted C-40 Crusher 6252 | -7/Waste | Discovered new exit (range 12) 6253 | -7/Waste | Spotted C-40 Crusher 6258 | -7/Waste | Identified exit to Factory 6259 | -7/Waste | Entered Factory 6289 | -7/Factory | 2 allies followed down the chute 6383 | -7/Factory | Entered Lower Caves 6383 | -7/Lower Caves | Accompanied by 2 allies 6663 | -7/Lower Caves | Learned location of Extension (-5) 6820 | -7/Lower Caves | Attracted the attention of an 0b10 checkpoint 6963 | -7/Lower Caves | Learned Factory trap positions 7176 | -7/Lower Caves | Encountered a Warlord checkpoint 7176 | -7/Lower Caves | Discovered new exit (range 11) 7188 | -7/Lower Caves | Identified exit to Lower Caves 7189 | -7/Lower Caves | Entered another Lower Caves area 7208 | -7/Lower Caves | Discovered exit to Factory (range 5) 7214 | -7/Lower Caves | Build established: Hacker-Mutant 7367 | -7/Lower Caves | Encountered a Warlord checkpoint 7507 | -7/Lower Caves | Discovered new exit (range 15) 7514 | -7/Lower Caves | Identified exit to Zion 7642 | -7/Lower Caves | Entered an active Warlord outpost 7645 | -7/Lower Caves | Learned Factory trap positions 7645 | -7/Lower Caves | Learned Factory terminal intel 7645 | -7/Lower Caves | Learned Armory terminal intel 7723 | -7/Lower Caves | Entered Zion 7730 | -7/Zion | Given the Hacking Drone Bay 7731 | -7/Zion | Found Prototype Device 7739 | -7/Zion | System corruption cleaned by Quarantine Array 7760 | -7/Zion | Discovered new exit (range 14) 7824 | -7/Zion | Identified exit to Deep Caves 7838 | -7/Zion | Found Prototype Special Weapon 7838 | -7/Zion | Identified RU-N14's Throwing Claymores 7840 | -7/Zion | Found RU-N14's Throwing Claymores 7843 | -7/Zion | Found RU-N14's Throwing Claymores 7899 | -7/Zion | Learned Factory emergency access door positions 7998 | -7/Zion | Acquired unknown access codes intercepted by a Zionite 8091 | -7/Zion | Identified exit to Proximity Caves 8091 | -7/Zion | Entered Proximity Caves 8093 | -6/Proximity Caves | Learned Factory trap positions 8118 | -6/Proximity Caves | Learned Factory security intel 8264 | -6/Proximity Caves | Discovered exit to Factory (range 14) 8387 | -6/Proximity Caves | Received a Behemoth hack from an annoying Tinkerer 8506 | -6/Proximity Caves | Entered Factory 8506 | -6/Factory | Evolved 2 slots: Utility x2 8507 | -6/Factory | Identified exit to Lower Caves 8508 | -6/Factory | Loaded intel: 89 trap records 8511 | -6/Factory | Loaded intel: 26 terminal locations 8586 | -6/Factory | Discovered new exit (range 9) 8596 | -6/Factory | Identified exit to Factory 8865 | -6/Factory | Spotted B-75 Beast 9273 | -6/Factory | Repaired Airjet 9573 | -6/Factory | Identified Hacking Drone Bay 9631 | -6/Factory | Repaired Gravmag System 9708 | -6/Factory | Discovered exit to Factory (range 9) 9716 | -6/Factory | Central database locked down 9855 | -6/Factory | Entered Lower Caves 9905 | -6/Lower Caves | Encountered a Warlord checkpoint 10192 | -6/Lower Caves | Discovered new exit (range 13) 10197 | -6/Lower Caves | Identified exit to Lower Caves 10254 | -6/Lower Caves | Attacked by a delusional Derelict stockpiling Unaware 10345 | -6/Lower Caves | Entered another Lower Caves area 10345 | -6/Lower Caves | Accompanied by 3 allies 10345 | -6/Lower Caves | Discovered exit to Factory (range 6) 10427 | -6/Lower Caves | Identified exit to Data Miner 10444 | -6/Lower Caves | Found Alien Artifact 10444 | -6/Lower Caves | Identified Core Expander 10444 | -6/Lower Caves | Installed Core Expander, added new Utility slot 10607 | -6/Lower Caves | Entered Data Miner 10607 | -6/Data Miner | Accompanied by 3 allies 10607 | -6/Data Miner | Discovered new exit (range 7) 10627 | -6/Data Miner | Met Data Miner 10647 | -6/Data Miner | Learned location of Section 7 (-2) 10647 | -6/Data Miner | Acquired the access code to Warlord's prototype stash 10664 | -6/Data Miner | Received God Mode back door access code from Data Miner 10691 | -6/Data Miner | Identified exit to Proximity Caves 10700 | -6/Data Miner | Entered Proximity Caves 10700 | -5/Proximity Caves | Accompanied by 3 allies 10786 | -5/Proximity Caves | Attracted the attention of an 0b10 outpost 10815 | -5/Proximity Caves | Destroyed 9 combat bots 10823 | -5/Proximity Caves | Lost 3 allies 11007 | -5/Proximity Caves | Learned Factory terminal intel 11152 | -5/Proximity Caves | Discovered exit to Factory (range 3) 11214 | -5/Proximity Caves | Entered Factory 11214 | -5/Factory | Evolved 2 slots: Propulsion x1, Utility x1 11215 | -5/Factory | Loaded intel: 97 trap records 11216 | -5/Factory | Loaded intel: 28 terminal locations 11259 | -5/Factory | Identified exit to Upper Caves 11259 | -5/Factory | Identified exit to Extension 11299 | -5/Factory | Central database locked down 11340 | -5/Factory | Fabricated Smartbomb Launcher (x1) 11510 | -5/Factory | Repaired Exp. Sensor Array 11531 | -5/Factory | Build established: Wizard-Mutant 11543 | -5/Factory | Repaired Gravmag System 12146 | -5/Factory | Entered Upper Caves 12162 | -5/Upper Caves | Learned Factory emergency access door positions 12315 | -5/Upper Caves | A Derelict revealed a hidden shortcut to "reach the base" 12316 | -5/Upper Caves | Identified exit to Warlord 12366 | -5/Upper Caves | Entered Warlord 12400 | -5/Warlord | System corruption cleaned by Quarantine Array 12460 | -5/Warlord | Met Warlord 12485 | -5/Warlord | Warlord's base attacked by MAIN.C 12567 | -5/Warlord | Opened Warlord's prototype stash 12584 | -5/Warlord | Found Prototype Reactor 12627 | -5/Warlord | Found Prototype Energy Gun 12627 | -5/Warlord | Identified Vortex Shotgun 12632 | -5/Warlord | Found Prototype Energy Gun 12632 | -5/Warlord | Identified Vortex Rail 12636 | -5/Warlord | Found Vortex Shotgun 12782 | -5/Warlord | Warlord forces counterattacked 12832 | -5/Warlord | Lost 4 allies 12836 | -5/Warlord | Destroyed 18 combat bots 13004 | -5/Warlord | Found Prototype Device 13004 | -5/Warlord | Identified Adv. Kinecellerator 13017 | -5/Warlord | Destroyed 10 combat bots 13020 | -5/Warlord | Lost 3 allies 13023 | -5/Warlord | Found Prototype Ballistic Cannon 13025 | -5/Warlord | Identified Hvy. Autocannon 13126 | -5/Warlord | Spotted Executioner 13148 | -5/Warlord | Lost 8 allies 13160 | -5/Warlord | Warlord base infiltrated, sounded retreat 13165 | -5/Warlord | Destroyed 8 combat bots 13187 | -5/Warlord | Spotted Executioner 13255 | -5/Warlord | Lost 5 allies 13305 | -5/Warlord | Spotted Striker 13307 | -5/Warlord | Spotted Executioner 13318 | -5/Warlord | Discovered new exit (range 14) 13340 | -5/Warlord | Identified exit to Proximity Caves 13341 | -5/Warlord | Entered Proximity Caves 13437 | -4/Proximity Caves | Destroyed 7 combat bots 13521 | -4/Proximity Caves | Discovered new exit (range 12) 13525 | -4/Proximity Caves | Identified exit to Factory 13525 | -4/Proximity Caves | Entered Factory 13525 | -4/Factory | Evolved 2 slots: Power x1, Utility x1 13526 | -4/Factory | Identified exit to Research 13527 | -4/Factory | Loaded intel: 105 trap records 13775 | -4/Factory | First assault squad dispatched 13850 | -4/Factory | Fabricated Adv. Sensor Array? 13855 | -4/Factory | Build established: Hacker-Mutant 13895 | -4/Factory | Incoming investigation squad redirected 13910 | -4/Factory | Lost 3 parts (1p1n1u) 14154 | -4/Factory | Found Quantum Capacitor 14239 | -4/Factory | Lost 4 parts (2n1u1w) 14299 | -4/Factory | Incoming assault squad redirected 14306 | -4/Factory | Identified Vortex Chain Reactor 14309 | -4/Factory | Spotted B-86 Titan 14581 | -4/Factory | Discovered exit to Research (range 5) 14630 | -4/Factory | Fabricated Adv. Hacking Suite? 14695 | -4/Factory | Incoming investigation squad redirected 14804 | -4/Factory | Incoming assault squad redirected 14813 | -4/Factory | Lost 4 parts (2n1u1w) 14868 | -4/Factory | Core integrity fell below 50% 14890 | -4/Factory | Core integrity fell below 20% 14897 | -4/Factory | Destroyed by G-73 Enforcer with Heavy Laser Last Messages --------------- 14888_ U-05 Engineer lays Concrete. 14891_ C-30 ARC bursts open, deploying its payload. 14891_ G-73 Enforcer unfolds itself. 14891_ B-60 Warrior unfolds itself. 14891_ G-67 Veteran unfolds itself. 14891_ M-36 Artificer unfolds itself. 14891_ Authchip [Processor] destroyed. 14891_ Dropped Hcp. Storage Unit. 14891_ U-05 Engineer lays Concrete. 14892_ Authchip [Processor] destroyed. 14892_ G-67 Veteran destroyed. 14892_ Acquired Impact Mace. 14893_ U-05 Engineer lays Concrete. 14894_ Cmb. Linear Gravjet destroyed. 14894_ U-05 Engineer lays Concrete. 14895_ The unstable cave ceiling collapses. 14895_ U-05 Engineer lays Concrete. 14896_ K-01 Serf collects debris. 14896_ Authchip [Processor] destroyed. 14897_ The unstable cave ceiling collapses. Map ----- +----------------------------------------------------+ | ?????????????????????????????????????????????????? | | ?????????????????????????????????????????????????? | | ?????????????????????????????????????????????????? | | ?????????????????????????????????????????????????? | | ?????????????????????????????????????????????????? | | ?????????????????????????????????????????????????? | | ?????????????????????????????????????#???????????? | | ???????????????????????????????????? #???????????? | | ?????????????????????????????????### ###?????????? | | ?????????????????????????##????## ###???????? | | ?????????????????????#####"#####""#####" #???????? | | ?????????????????????# " " #???????? | | ?????????????????????#####" !! " ##??????? | | ?????????????????????????## !! #??????? | | ??????????????????????????# ##??????? | | ??????????????????????????# #??###??? | | ??????????????????????????# ####"#### | | ??????????????????????????# # # " | | ??????????????????????????# # " + " | | ??????????????????????????#!! ## # " | | ??????????????????????????#!! ### ## " | | ??????????????????????????#*!! #?# ## | | ??????????????????????????#! ! ### ## [ | | ??????????????????????????## g#m ### # # | | ???????????????#T ########## g g + | | ?????????? @ b #[ ##### | | ?????????? ^ #"##???# | | ?????????? ^ gg ##"##### | | ??????????? ############# # # | | ??????????????????????????? ## !% ?# """" | | ???????????????????????????# % #?# """" | | ???????????????????????????# g ?# """" | | ??????????????????????????? # # % ?# """" | | ??????????????????????????? # """" | | ???????????????????????????# # """" | | ???????????????????????????? # | | ???????????????????????????? ? = # | | ????????????????????????????#"" ? =[ "####+# | | ??????????^^????????????????? ?? ?????? | | ???????????^????????????????? ???" ?????? | | ???????????^???????????????????????? ?????? | | ?????????????????????????????????? ?????? | | ???????????????????????????????? ?????? | | ???????????????????????????????###+########??????? | | ????????????????????????????????????????????????^? | | ?????????????????????????????????????????????????? | | ?????????????????????????????????????????????????? | | ?????????????????????????????????????????????????? | | ?????????????????????????????????????????????????? | | ????????^?^??????????????????????????????????????? | +----------------------------------------------------+ Best States ------------- Heat Dissipation 48 Energy Generation 55 Energy Capacity 700 Matter Stores 300 Matter Capacity 300 Sight Range 16 Robot Scan Range 20 Terrain Scan Density 10 Jamming Range 16 Armor Coverage 300 Resistance: KI 20 Resistance: TH 10 Evasion (%) 57 Recoil Reduction 1 Offensive Hacking 65 Defensive Hacking 14 Authchip Count 10 Item Schematics ----------------- Core Analyzer | -7/Factory | Scanalyzed Imp. Sensor Array | -7/Factory | Hacked Imp. Deuterium Engine | -7/Zion | Archive Thermic Laser | -7/Zion | Archive Imp. Particle Charger | -7/Zion | Archive Gauss Rifle | -7/Zion | Archive Adv. Sensor Array | -7/Zion | Archive Adv. Terrain Scan Processor | -7/Zion | Archive Imp. Coolant Injector | -7/Zion | Archive Adv. Heat Sink | -7/Zion | Archive Imp. Melee Analysis Suite | -7/Zion | Archive Recalibrator | -7/Zion | Archive System Guard | -7/Zion | Archive Shock Absorption System | -7/Zion | Archive Cloaking Device | -7/Zion | Archive Adv. ECM Suite | -7/Zion | Archive Hvy. Reactive Plating | -6/Factory | Hacked Smartbomb Launcher | -6/Factory | Hacked Combat Drone Bay | -6/Data Miner | Free Lgt. Regenerative Plating | -6/Data Miner | Free Enh. Armored Leg | -6/Data Miner | Free Adv. EM Disruption Field | -6/Data Miner | Free Enh. Force Rifle | -6/Data Miner | Free Imp. Heavy Treads | -6/Data Miner | Free Nanoactuators | -6/Data Miner | Free Matter Neutralizer | -6/Data Miner | Free Hvy. Gauss Cannon | -6/Data Miner | Free Biometal Leg | -6/Data Miner | Free Adv. Weapon Cycler | -5/Factory | Hacked Exp. Targeting Computer | -5/Factory | Hacked Exp. Utility Shielding | -5/Factory | Hacked Lgt. Angular Momentum Engine | -5/Factory | Scanalyzed Adv. Hacking Suite | -4/Factory | Hacked Robot Schematics ------------------ Y-54 Guardian | -7/Zion | Archive G-47 Trooper | -7/Zion | Archive M-14 Sweeper | -7/Zion | Archive X-77 Beamer | -7/Zion | Archive Y-64 Sentinel | -6/Data Miner | Free R-10 Processor | -6/Data Miner | Free H-66 Slayer | -6/Data Miner | Free E-15 Imp | -6/Data Miner | Free Fabricated ------------ Smartbomb Launcher | x1 | -5/Factory | Authchip Adv. Sensor Array | x2 | -4/Factory | Authchip Adv. Hacking Suite | x1 | -4/Factory | Authchip Repaired ---------- Salvaging Laser | 6% | -10/Materials Salvaging Laser | 16% | -10/Materials Airjet | 67% | -7/Factory Airjet | 42% | -6/Factory Gravmag System | 28% | -6/Factory Exp. Sensor Array | 62% | -5/Factory Gravmag System | 37% | -5/Factory Alien Tech Used ----------------- Core Expander Achievements -------------- None Challenges ------------ None Game ------ Seed CoolingConcussiveMaul Manual? 0 Play Time 03:35:50 Cumulative 403.4 hours Start 2025.06.07 @ 13:57:16 End 2025.06.09 @ 22:38:02 Sessions 5 Manual Loads 0 Difficulty Rogue Special Mode None Game No. 206 Rogue 206 Adventurer 0 Explorer 0 Win Type - Total 5 Types 5/0/0/0/0/0/0/0/0/0 Lore% 62 Gallery% 67 Achievement% 63 Wizard Run 0 Options --------- Layout 0 ASCII 0 Keyboard 1 Movement Vi Keybinds 0 Fullscreen 2 Font 18/SmallcapsGlow Map View 76x50 Zoom Use 0% Tactical HUD 1 Map Filters NONE Filters NONE Steam 1 RUN: 187bda7d-a7ba-4c9f-be9b-77d7c3b69a59